[Event "*** Titled Tuesday Blitz"]
[Site "Chess.com"]
[Date "2020.05.05"]
[Round "4"]
[White "tvjosue"]
[Black "Jaka_Brilej"]
[Result "1-0"]
[WhiteElo "2562"]
[BlackElo "2361"]
[TimeControl "180+1"]
[EndTime "10:38:56 PDT"]
[Termination "tvjosue won by resignation"]

1. c4 {[%clk 0:03:00.9]} 1... f5 {[%clk 0:02:57.6]} 2. Nc3 {[%clk 0:02:59.1]}
2... Nf6 {[%clk 0:02:55.1]} 3. Nh3 {[%clk 0:03:00]} 3... d6 {[%clk 0:02:49.1]}
4. g3 {[%clk 0:03:00.9]} 4... g6 {[%clk 0:02:48.3]} 5. Bg2 {[%clk 0:02:57.4]}
5... Bg7 {[%clk 0:02:48.3]} 6. O-O {[%clk 0:02:58.3]} 6... O-O {[%clk
0:02:47.9]} 7. d4 {[%clk 0:02:59.2]} 7... c6 {[%clk 0:02:47.3]} 8. d5 {[%clk
0:02:59]} 8... e5 {[%clk 0:02:41.2]} 9. e4 {[%clk 0:02:57.8]} 9... c5 {[%clk
0:02:21.3]} 10. Ng5 {[%clk 0:02:55.4]} 10... Qe7 {[%clk 0:02:16.7]} 11. Ne6
{[%clk 0:02:47.4]} 11... Rf7 {[%clk 0:01:32.1]} 12. Nxg7 {[%clk 0:02:45.6]}
12... Kxg7 {[%clk 0:01:32.1]} 13. a3 {[%clk 0:02:05.3]} 13... Na6 {[%clk
0:01:30.5]} 14. f4 {[%clk 0:01:59.9]} 14... fxe4 {[%clk 0:01:17.1]} 15. fxe5
{[%clk 0:01:58.6]} 15... Qxe5 {[%clk 0:01:11.4]} 16. Bf4 {[%clk 0:01:57.4]}
16... Qe7 {[%clk 0:01:08]} 17. Qd2 {[%clk 0:01:54.6]} 17... Bf5 {[%clk
0:01:01.2]} 18. Rae1 {[%clk 0:01:50.7]} 18... Re8 {[%clk 0:00:50.6]} 19. h3
{[%clk 0:01:49.7]} 19... Kg8 {[%clk 0:00:40.4]} 20. g4 {[%clk 0:01:48.1]} 20...
Bd7 {[%clk 0:00:35.8]} 21. Bg5 {[%clk 0:01:46.2]} 21... Qf8 {[%clk 0:00:31.9]}
22. Bh6 {[%clk 0:01:38.7]} 22... Qe7 {[%clk 0:00:29.5]} 23. Bg5 {[%clk
0:01:32.9]} 23... Qf8 {[%clk 0:00:29.6]} 24. Qe3 {[%clk 0:01:31.3]} 24... Nc7
{[%clk 0:00:26]} 25. Bh6 {[%clk 0:01:30.1]} 25... Qe7 {[%clk 0:00:25.3]} 26. Qg3
{[%clk 0:01:30.6]} 26... Kh8 {[%clk 0:00:18.4]} 27. Bf4 {[%clk 0:01:29.7]} 27...
Ng8 {[%clk 0:00:16.6]} 28. Bxd6 {[%clk 0:01:29.2]} 28... Rxf1+ {[%clk
0:00:16.6]} 29. Rxf1 {[%clk 0:01:29.6]} 29... Qd8 {[%clk 0:00:16.5]} 30. Bxc7
{[%clk 0:01:29.7]} 30... Qc8 {[%clk 0:00:16.6]} 31. Be5+ {[%clk 0:01:29.8]} 1-0

[Event "*** Titled Tuesday Blitz"]
[Site "Chess.com"]
[Date "2020.05.05"]
[Round "4"]
[White "PSvidler"]
[Black "Yuri202062"]
[Result "1-0"]
[WhiteElo "3033"]
[BlackElo "2562"]
[TimeControl "180+1"]
[EndTime "10:38:59 PDT"]
[Termination "PSvidler won by resignation"]

1. e4 {[%clk 0:03:00.9]} 1... c5 {[%clk 0:02:59.9]} 2. Nf3 {[%clk 0:03:00.6]}
2... e6 {[%clk 0:02:57.5]} 3. d4 {[%clk 0:03:00.5]} 3... cxd4 {[%clk 0:02:57.7]}
4. Nxd4 {[%clk 0:03:00.1]} 4... a6 {[%clk 0:02:58]} 5. Nc3 {[%clk 0:02:57.6]}
5... d6 {[%clk 0:02:57.1]} 6. g4 {[%clk 0:02:48.1]} 6... b5 {[%clk 0:02:54]} 7.
a3 {[%clk 0:02:41]} 7... Bb7 {[%clk 0:02:53.7]} 8. Bg2 {[%clk 0:02:40.4]} 8...
Ne7 {[%clk 0:02:53.1]} 9. h4 {[%clk 0:02:36.9]} 9... Nec6 {[%clk 0:02:52.9]} 10.
g5 {[%clk 0:02:36.5]} 10... Nxd4 {[%clk 0:02:34.8]} 11. Qxd4 {[%clk 0:02:36]}
11... Nc6 {[%clk 0:02:34.9]} 12. Qe3 {[%clk 0:02:33.1]} 12... g6 {[%clk
0:02:23.1]} 13. b3 {[%clk 0:02:14.6]} 13... Bg7 {[%clk 0:02:22.5]} 14. Bb2
{[%clk 0:02:14.6]} 14... h5 {[%clk 0:02:06.5]} 15. O-O-O {[%clk 0:02:10.2]}
15... O-O {[%clk 0:02:01.2]} 16. Ne2 {[%clk 0:02:01.7]} 16... Bxb2+ {[%clk
0:01:45.8]} 17. Kxb2 {[%clk 0:02:01.4]} 17... Qe7 {[%clk 0:01:45.7]} 18. f4
{[%clk 0:02:00.4]} 18... Rfd8 {[%clk 0:01:42.5]} 19. Rd2 {[%clk 0:02:00.2]}
19... Rac8 {[%clk 0:01:40.2]} 20. Rhd1 {[%clk 0:01:59.8]} 20... a5 {[%clk
0:01:35.7]} 21. Qb6 {[%clk 0:01:54.1]} 21... b4 {[%clk 0:01:34.8]} 22. a4 {[%clk
0:01:54.3]} 22... Rd7 {[%clk 0:01:29.4]} 23. f5 {[%clk 0:01:32]} 23... Qd8
{[%clk 0:01:24.6]} 24. Qxd8+ {[%clk 0:01:31.3]} 24... Rcxd8 {[%clk 0:01:24.5]}
25. Nf4 {[%clk 0:01:28.2]} 25... gxf5 {[%clk 0:00:34]} 26. exf5 {[%clk
0:01:28.1]} 26... exf5 {[%clk 0:00:34.3]} 27. Nxh5 {[%clk 0:01:27.4]} 27... Re7
{[%clk 0:00:31.7]} 28. Rxd6 {[%clk 0:01:26.4]} 28... Rxd6 {[%clk 0:00:31.2]} 29.
Rxd6 {[%clk 0:01:27.3]} 29... Ne5 {[%clk 0:00:26.6]} 30. Rd8+ {[%clk 0:01:25.7]}
30... Kh7 {[%clk 0:00:26]} 31. Nf6+ {[%clk 0:01:26.3]} 1-0

[Event "*** Titled Tuesday Blitz"]
[Site "Chess.com"]
[Date "2020.05.05"]
[Round "4"]
[White "szefru"]
[Black "grunbergmihai"]
[Result "0-1"]
[WhiteElo "2099"]
[BlackElo "2385"]
[TimeControl "180+1"]
[EndTime "10:39:02 PDT"]
[Termination "grunbergmihai won by resignation"]

1. e4 {[%clk 0:03:00.9]} 1... Nf6 {[%clk 0:03:00.9]} 2. e5 {[%clk 0:03:00.7]}
2... Nd5 {[%clk 0:02:57]} 3. d4 {[%clk 0:03:00.1]} 3... d6 {[%clk 0:02:57]} 4.
c4 {[%clk 0:02:57.6]} 4... Nb6 {[%clk 0:02:56]} 5. exd6 {[%clk 0:02:56]} 5...
cxd6 {[%clk 0:02:56]} 6. h3 {[%clk 0:02:45.8]} 6... g6 {[%clk 0:02:55.8]} 7. Nf3
{[%clk 0:02:45.7]} 7... Bg7 {[%clk 0:02:56.7]} 8. Be2 {[%clk 0:02:46.1]} 8...
O-O {[%clk 0:02:57.4]} 9. O-O {[%clk 0:02:45.9]} 9... Nc6 {[%clk 0:02:57.2]} 10.
Nc3 {[%clk 0:02:43.6]} 10... Bf5 {[%clk 0:02:55.9]} 11. Be3 {[%clk 0:02:31.5]}
11... d5 {[%clk 0:02:55.6]} 12. c5 {[%clk 0:02:23.1]} 12... Nc4 {[%clk 0:02:55]}
13. b3 {[%clk 0:01:56.7]} 13... Nxe3 {[%clk 0:02:54]} 14. fxe3 {[%clk
0:01:57.6]} 14... e5 {[%clk 0:02:41.2]} 15. Bb5 {[%clk 0:01:23]} 15... exd4
{[%clk 0:02:38.8]} 16. exd4 {[%clk 0:01:23.9]} 16... Be4 {[%clk 0:02:35.7]} 17.
Bxc6 {[%clk 0:01:20.8]} 17... bxc6 {[%clk 0:02:35]} 18. Qd2 {[%clk 0:01:19.9]}
18... Re8 {[%clk 0:02:30.2]} 19. Rf2 {[%clk 0:00:47.5]} 19... f5 {[%clk
0:02:29.6]} 20. Re1 {[%clk 0:00:46.3]} 20... Qf6 {[%clk 0:02:15.3]} 21. Ne5
{[%clk 0:00:45.8]} 21... Qe6 {[%clk 0:02:15.3]} 22. Nxe4 {[%clk 0:00:44.1]}
22... dxe4 {[%clk 0:02:12.7]} 23. Nc4 {[%clk 0:00:41.7]} 23... Rad8 {[%clk
0:01:59]} 24. Nd6 {[%clk 0:00:39.2]} 24... Rxd6 {[%clk 0:01:52.8]} 25. cxd6
{[%clk 0:00:38.7]} 25... e3 {[%clk 0:01:52.7]} 26. Rff1 {[%clk 0:00:27.9]} 26...
exd2 {[%clk 0:01:48.9]} 27. Rxe6 {[%clk 0:00:28.8]} 27... Rxe6 {[%clk
0:01:48.7]} 28. d7 {[%clk 0:00:26]} 28... Rd6 {[%clk 0:01:44]} 29. Rd1 {[%clk
0:00:24.9]} 29... Rxd4 {[%clk 0:01:43.5]} 30. Kf1 {[%clk 0:00:23.9]} 30... Rxd7
{[%clk 0:01:42.9]} 31. Ke2 {[%clk 0:00:24.2]} 31... Bc3 {[%clk 0:01:42]} 32. g4
{[%clk 0:00:19.7]} 32... fxg4 {[%clk 0:01:40.5]} 33. hxg4 {[%clk 0:00:20.6]}
33... a5 {[%clk 0:01:40.8]} 0-1

[Event "*** Titled Tuesday Blitz"]
[Site "Chess.com"]
[Date "2020.05.05"]
[Round "4"]
[White "APOKALIPSA13"]
[Black "Gmedmundo"]
[Result "0-1"]
[WhiteElo "2234"]
[BlackElo "2478"]
[TimeControl "180+1"]
[EndTime "10:39:02 PDT"]
[Termination "Gmedmundo won by resignation"]

1. d4 {[%clk 0:03:00.9]} 1... Nf6 {[%clk 0:02:59.2]} 2. c4 {[%clk 0:03:00.2]}
2... e6 {[%clk 0:02:59.1]} 3. Nf3 {[%clk 0:02:59]} 3... c5 {[%clk 0:02:58.7]} 4.
d5 {[%clk 0:02:58.3]} 4... exd5 {[%clk 0:02:58.4]} 5. cxd5 {[%clk 0:02:59.2]}
5... d6 {[%clk 0:02:58.3]} 6. Nc3 {[%clk 0:02:59.4]} 6... g6 {[%clk 0:02:57.5]}
7. e4 {[%clk 0:02:59.1]} 7... a6 {[%clk 0:02:57.1]} 8. a4 {[%clk 0:02:58.6]}
8... Bg4 {[%clk 0:02:56.8]} 9. Be2 {[%clk 0:02:58.1]} 9... Bxf3 {[%clk
0:02:56.1]} 10. Bxf3 {[%clk 0:02:57.7]} 10... Bg7 {[%clk 0:02:55.7]} 11. O-O
{[%clk 0:02:57.1]} 11... Nbd7 {[%clk 0:02:54.5]} 12. Bf4 {[%clk 0:02:56.3]}
12... Qe7 {[%clk 0:02:53.8]} 13. Re1 {[%clk 0:02:52.5]} 13... O-O {[%clk
0:02:52.7]} 14. a5 {[%clk 0:02:50.2]} 14... Ne8 {[%clk 0:02:50.1]} 15. Qd2
{[%clk 0:02:48.3]} 15... Nc7 {[%clk 0:02:48.1]} 16. Ra3 {[%clk 0:02:41.5]} 16...
Nb5 {[%clk 0:02:34.8]} 17. Nxb5 {[%clk 0:02:32.6]} 17... axb5 {[%clk 0:02:33.9]}
18. Bg5 {[%clk 0:02:21.6]} 18... Bf6 {[%clk 0:02:31.5]} 19. Bxf6 {[%clk
0:02:11.3]} 19... Qxf6 {[%clk 0:02:30.4]} 20. Be2 {[%clk 0:02:02.2]} 20... b4
{[%clk 0:02:25.6]} 21. Rf3 {[%clk 0:01:55.4]} 21... Qg7 {[%clk 0:02:24.5]} 22.
Rh3 {[%clk 0:01:41.4]} 22... Rfe8 {[%clk 0:02:16.5]} 23. Bb5 {[%clk 0:01:35.9]}
23... Re7 {[%clk 0:02:13.7]} 24. a6 {[%clk 0:01:20.9]} 24... bxa6 {[%clk
0:02:11.6]} 25. Bc6 {[%clk 0:01:20.6]} 25... Rb8 {[%clk 0:02:04.3]} 26. Qg5
{[%clk 0:01:07.6]} 26... Re5 {[%clk 0:01:55.3]} 27. Qg3 {[%clk 0:01:00.5]} 27...
Nf6 {[%clk 0:01:53.8]} 28. f4 {[%clk 0:00:47.4]} 28... Rxe4 {[%clk 0:01:49.4]}
29. Ra1 {[%clk 0:00:41.5]} 29... Re2 {[%clk 0:01:38.8]} 30. Qb3 {[%clk 0:00:27]}
30... Ne4 {[%clk 0:01:31.5]} 31. f5 {[%clk 0:00:23.4]} 31... Qd4+ {[%clk
0:01:27.4]} 0-1

[Event "*** Titled Tuesday Blitz"]
[Site "Chess.com"]
[Date "2020.05.05"]
[Round "4"]
[White "Sven_Tica"]
[Black "Parhamov"]
[Result "0-1"]
[WhiteElo "2712"]
[BlackElo "3007"]
[TimeControl "180+1"]
[EndTime "10:39:03 PDT"]
[Termination "Parhamov won by resignation"]

1. d4 {[%clk 0:03:00.9]} 1... d5 {[%clk 0:02:51.4]} 2. c4 {[%clk 0:03:00.4]}
2... e6 {[%clk 0:02:51.5]} 3. Nf3 {[%clk 0:03:00.7]} 3... Nf6 {[%clk 0:02:51.2]}
4. g3 {[%clk 0:03:01.4]} 4... Be7 {[%clk 0:02:50.6]} 5. Bg2 {[%clk 0:03:02]}
5... O-O {[%clk 0:02:50.5]} 6. O-O {[%clk 0:03:02.5]} 6... Nbd7 {[%clk
0:02:49.9]} 7. Nbd2 {[%clk 0:03:01.5]} 7... c6 {[%clk 0:02:49.2]} 8. b3 {[%clk
0:03:00.6]} 8... b6 {[%clk 0:02:49.1]} 9. Bb2 {[%clk 0:03:01.1]} 9... Bb7 {[%clk
0:02:48.8]} 10. e3 {[%clk 0:03:01.7]} 10... Rc8 {[%clk 0:02:49.1]} 11. Qe2
{[%clk 0:03:02.4]} 11... Qc7 {[%clk 0:02:48]} 12. Rfd1 {[%clk 0:03:02.9]} 12...
Qb8 {[%clk 0:02:48]} 13. Rac1 {[%clk 0:03:03.4]} 13... Rfd8 {[%clk 0:02:32.7]}
14. e4 {[%clk 0:02:56.1]} 14... dxe4 {[%clk 0:02:30.6]} 15. Nxe4 {[%clk
0:02:56.1]} 15... Nxe4 {[%clk 0:02:30.6]} 16. Qxe4 {[%clk 0:02:57]} 16... c5
{[%clk 0:02:30.5]} 17. d5 {[%clk 0:02:57]} 17... Bf6 {[%clk 0:02:29.3]} 18. Qc2
{[%clk 0:02:14.1]} 18... exd5 {[%clk 0:02:20.7]} 19. cxd5 {[%clk 0:02:04.7]}
19... Bxb2 {[%clk 0:02:19.6]} 20. Qxb2 {[%clk 0:02:05.6]} 20... Nf6 {[%clk
0:02:19.1]} 21. b4 {[%clk 0:01:49.6]} 21... Bxd5 {[%clk 0:02:15.9]} 22. bxc5
{[%clk 0:01:48]} 22... Rxc5 {[%clk 0:02:15.8]} 23. Rxc5 {[%clk 0:01:48.1]} 23...
bxc5 {[%clk 0:02:15.9]} 24. Qa3 {[%clk 0:01:48.8]} 24... Rc8 {[%clk 0:02:13.7]}
25. Rc1 {[%clk 0:01:33.2]} 25... c4 {[%clk 0:02:12.9]} 26. Nd2 {[%clk
0:01:32.2]} 26... Qb5 {[%clk 0:01:56.1]} 27. Bxd5 {[%clk 0:01:13.3]} 27... Nxd5
{[%clk 0:01:57]} 28. Qxa7 {[%clk 0:01:13.5]} 28... c3 {[%clk 0:01:56.6]} 29. Ne4
{[%clk 0:01:10.9]} 29... c2 {[%clk 0:01:55.8]} 30. Nd6 {[%clk 0:00:52]} 30...
Qb1 {[%clk 0:01:55.1]} 31. Qxf7+ {[%clk 0:00:42.4]} 31... Kh8 {[%clk 0:01:55.1]}
32. Qxd5 {[%clk 0:00:38.5]} 32... Qxc1+ {[%clk 0:01:52.4]} 33. Kg2 {[%clk
0:00:38.9]} 33... Qf1+ {[%clk 0:01:38.9]} 34. Kxf1 {[%clk 0:00:35.3]} 34...
c1=Q+ {[%clk 0:01:39.3]} 35. Ke2 {[%clk 0:00:33.8]} 35... Rc2+ {[%clk
0:01:32.3]} 0-1

[Event "*** Titled Tuesday Blitz"]
[Site "Chess.com"]
[Date "2020.05.05"]
[Round "4"]
[White "mariangie523"]
[Black "ZarinaShafigullina"]
[Result "0-1"]
[WhiteElo "2035"]
[BlackElo "2232"]
[TimeControl "180+1"]
[EndTime "10:39:03 PDT"]
[Termination "ZarinaShafigullina won on time"]

1. e4 {[%clk 0:03:00.9]} 1... c5 {[%clk 0:02:59.5]} 2. Nf3 {[%clk 0:02:58.6]}
2... Nc6 {[%clk 0:02:59.2]} 3. d4 {[%clk 0:02:57.8]} 3... cxd4 {[%clk
0:02:59.6]} 4. Nxd4 {[%clk 0:02:58.2]} 4... Nf6 {[%clk 0:03:00.2]} 5. f3 {[%clk
0:02:57.3]} 5... Qa5+ {[%clk 0:02:53.7]} 6. Nc3 {[%clk 0:02:36]} 6... d5 {[%clk
0:02:46.6]} 7. Nb3 {[%clk 0:02:20.5]} 7... Qd8 {[%clk 0:02:23.1]} 8. exd5 {[%clk
0:01:37.4]} 8... Nb4 {[%clk 0:02:21.6]} 9. Bb5+ {[%clk 0:01:31.4]} 9... Bd7
{[%clk 0:02:19.4]} 10. Bc4 {[%clk 0:01:23.5]} 10... Rc8 {[%clk 0:02:17.8]} 11.
Qe2 {[%clk 0:01:03.9]} 11... Qc7 {[%clk 0:01:48.9]} 12. Bd3 {[%clk 0:00:25.3]}
12... Nfxd5 {[%clk 0:01:43.9]} 13. Nxd5 {[%clk 0:00:10.7]} 13... Nxd5 {[%clk
0:01:43.8]} 14. O-O {[%clk 0:00:08.9]} 14... e6 {[%clk 0:01:39.2]} 15. Rd1
{[%clk 0:00:06.5]} 15... Nf4 {[%clk 0:01:37]} 16. Bxf4 {[%clk 0:00:04.8]} 16...
Qxf4 {[%clk 0:01:35.6]} 17. Qe4 {[%clk 0:00:04.5]} 17... Qxe4 {[%clk 0:01:33.7]}
18. Bxe4 {[%clk 0:00:04.2]} 18... b6 {[%clk 0:01:33.6]} 19. Rac1 {[%clk
0:00:02.8]} 19... a5 {[%clk 0:01:26.6]} 20. Nd4 {[%clk 0:00:02.2]} 20... Bc5
{[%clk 0:01:24.7]} 21. c4 {[%clk 0:00:01.1]} 21... e5 {[%clk 0:01:23.7]} 0-1

[Event "*** Titled Tuesday Blitz"]
[Site "Chess.com"]
[Date "2020.05.05"]
[Round "4"]
[White "Ziachess74"]
[Black "KrakenBeast"]
[Result "1-0"]
[WhiteElo "2563"]
[BlackElo "2334"]
[TimeControl "180+1"]
[EndTime "10:39:04 PDT"]
[Termination "Ziachess74 won by resignation"]

1. d4 {[%clk 0:03:00.9]} 1... Nf6 {[%clk 0:02:53.3]} 2. Bg5 {[%clk 0:02:59]}
2... Ne4 {[%clk 0:02:52.9]} 3. Bf4 {[%clk 0:02:58.6]} 3... d5 {[%clk 0:02:53]}
4. f3 {[%clk 0:02:58.3]} 4... Nf6 {[%clk 0:02:51.9]} 5. Nc3 {[%clk 0:02:58.4]}
5... a6 {[%clk 0:02:50]} 6. e4 {[%clk 0:02:55.3]} 6... dxe4 {[%clk 0:02:46.4]}
7. fxe4 {[%clk 0:02:56.2]} 7... e6 {[%clk 0:02:44]} 8. Nf3 {[%clk 0:02:52]} 8...
c5 {[%clk 0:02:44]} 9. dxc5 {[%clk 0:02:26.9]} 9... Qxd1+ {[%clk 0:02:41.3]} 10.
Rxd1 {[%clk 0:02:27.8]} 10... Bxc5 {[%clk 0:02:41.9]} 11. e5 {[%clk 0:02:27.7]}
11... Nfd7 {[%clk 0:02:22]} 12. Ne4 {[%clk 0:02:22.9]} 12... Be7 {[%clk
0:01:53.7]} 13. Bd3 {[%clk 0:02:06.7]} 13... Nc5 {[%clk 0:01:44.6]} 14. Nxc5
{[%clk 0:02:03]} 14... Bxc5 {[%clk 0:01:44.3]} 15. Be4 {[%clk 0:01:58.8]} 15...
Ra7 {[%clk 0:01:37]} 16. Nd4 {[%clk 0:01:55]} 16... Bd7 {[%clk 0:01:31.8]} 17.
Nb3 {[%clk 0:01:53.4]} 17... Bb6 {[%clk 0:01:31]} 18. Ke2 {[%clk 0:01:28.5]}
18... Bc6 {[%clk 0:01:31]} 19. Kf3 {[%clk 0:01:22.6]} 19... h6 {[%clk
0:01:24.7]} 20. Nd4 {[%clk 0:01:13.5]} 20... Bxe4+ {[%clk 0:01:15.9]} 21. Kxe4
{[%clk 0:01:13]} 21... Nd7 {[%clk 0:01:16.8]} 22. b4 {[%clk 0:01:05.4]} 22...
Bxd4 {[%clk 0:01:13.4]} 23. Rxd4 {[%clk 0:01:04.6]} 23... b5 {[%clk 0:01:11.6]}
24. c4 {[%clk 0:00:57.1]} 24... bxc4 {[%clk 0:01:08.5]} 25. Rxc4 {[%clk
0:00:58]} 25... Nb6 {[%clk 0:01:06.9]} 26. Rc6 {[%clk 0:00:57.4]} 26... Nd5
{[%clk 0:01:07]} 27. Rc8+ {[%clk 0:00:55.8]} 27... Kd7 {[%clk 0:01:00.4]} 28.
Rxh8 {[%clk 0:00:55.5]} 28... Rc7 {[%clk 0:01:01.3]} 29. Bd2 {[%clk 0:00:49.6]}
29... Rc3 {[%clk 0:00:57]} 30. Bxc3 {[%clk 0:00:48.3]} 1-0

[Event "*** Titled Tuesday Blitz"]
[Site "Chess.com"]
[Date "2020.05.05"]
[Round "4"]
[White "gmelviro"]
[Black "Mesa_1"]
[Result "0-1"]
[WhiteElo "2267"]
[BlackElo "2458"]
[TimeControl "180+1"]
[EndTime "10:39:14 PDT"]
[Termination "Mesa_1 won by resignation"]

1. c4 {[%clk 0:03:00.9]} 1... e5 {[%clk 0:02:58.8]} 2. g3 {[%clk 0:03:00.9]}
2... f5 {[%clk 0:02:58.4]} 3. Bg2 {[%clk 0:03:00.9]} 3... d6 {[%clk 0:02:58.9]}
4. Nc3 {[%clk 0:03:01]} 4... Nf6 {[%clk 0:02:59.3]} 5. d4 {[%clk 0:03:00.3]}
5... Be7 {[%clk 0:02:50.9]} 6. Nf3 {[%clk 0:02:53.7]} 6... e4 {[%clk 0:02:46.2]}
7. Nd2 {[%clk 0:02:50.3]} 7... c6 {[%clk 0:02:43.9]} 8. O-O {[%clk 0:02:47.7]}
8... d5 {[%clk 0:02:42.5]} 9. Qb3 {[%clk 0:02:35.7]} 9... O-O {[%clk 0:02:36.4]}
10. a4 {[%clk 0:02:18.9]} 10... Kh8 {[%clk 0:02:27.3]} 11. cxd5 {[%clk
0:02:16.6]} 11... cxd5 {[%clk 0:02:24.7]} 12. a5 {[%clk 0:02:13.8]} 12... Nc6
{[%clk 0:02:20.6]} 13. Qa4 {[%clk 0:01:52.4]} 13... Bd7 {[%clk 0:02:08.9]} 14.
e3 {[%clk 0:01:52.4]} 14... Nb4 {[%clk 0:01:55]} 15. Qb3 {[%clk 0:01:44.9]}
15... Rc8 {[%clk 0:01:52.6]} 16. f3 {[%clk 0:01:25.9]} 16... Bd6 {[%clk
0:01:41.1]} 17. f4 {[%clk 0:01:07.4]} 17... Qe7 {[%clk 0:01:19.5]} 18. Na2
{[%clk 0:00:46.2]} 18... Nc2 {[%clk 0:01:10.3]} 19. Rb1 {[%clk 0:00:41.8]} 19...
Ng4 {[%clk 0:01:10.1]} 20. Qxb7 {[%clk 0:00:32.4]} 20... Ngxe3 {[%clk
0:01:01.3]} 21. Rf2 {[%clk 0:00:30.4]} 21... Rb8 {[%clk 0:00:55.9]} 22. Qxa7
{[%clk 0:00:25.9]} 22... Ra8 {[%clk 0:00:55.1]} 23. Qb6 {[%clk 0:00:17.8]} 23...
Rfb8 {[%clk 0:00:54.5]} 0-1

[Event "*** Titled Tuesday Blitz"]
[Site "Chess.com"]
[Date "2020.05.05"]
[Round "4"]
[White "VojtechPlat"]
[Black "tsvet2005"]
[Result "1-0"]
[WhiteElo "2786"]
[BlackElo "2524"]
[TimeControl "180+1"]
[EndTime "10:39:17 PDT"]
[Termination "VojtechPlat won by resignation"]

1. h4 {[%clk 0:03:00.3]} 1... d5 {[%clk 0:02:58.8]} 2. h5 {[%clk 0:03:00.6]}
2... e5 {[%clk 0:02:57.3]} 3. d4 {[%clk 0:03:00.7]} 3... Nc6 {[%clk 0:02:53.3]}
4. dxe5 {[%clk 0:03:00.3]} 4... Nxe5 {[%clk 0:02:54.2]} 5. Bf4 {[%clk
0:03:00.4]} 5... Bd6 {[%clk 0:02:50.1]} 6. Nc3 {[%clk 0:02:57.7]} 6... c6 {[%clk
0:02:49.8]} 7. e4 {[%clk 0:02:57]} 7... Qe7 {[%clk 0:02:37.8]} 8. Qe2 {[%clk
0:02:53.5]} 8... d4 {[%clk 0:02:34.8]} 9. Nb1 {[%clk 0:02:52.5]} 9... Bg4 {[%clk
0:02:27.2]} 10. Qd2 {[%clk 0:02:39.3]} 10... Bb4 {[%clk 0:02:16.5]} 11. c3
{[%clk 0:02:38.5]} 11... dxc3 {[%clk 0:02:17]} 12. Nxc3 {[%clk 0:02:38.2]} 12...
Rd8 {[%clk 0:02:16.1]} 13. Qc2 {[%clk 0:02:36.1]} 13... Nf6 {[%clk 0:02:00.7]}
14. h6 {[%clk 0:02:34.5]} 14... Ng6 {[%clk 0:01:17.6]} 15. hxg7 {[%clk 0:02:31]}
15... Rg8 {[%clk 0:01:17.2]} 16. Be3 {[%clk 0:02:27.5]} 16... Nxe4 {[%clk
0:01:05.2]} 17. Be2 {[%clk 0:02:24.9]} 17... Bf5 {[%clk 0:00:57.4]} 18. Qb3
{[%clk 0:02:24.8]} 18... Nc5 {[%clk 0:00:50.9]} 19. Bxc5 {[%clk 0:02:09.3]}
19... Bxc5 {[%clk 0:00:43.1]} 20. Rxh7 {[%clk 0:02:04.7]} 20... Qf6 {[%clk
0:00:27]} 21. Qxb7 {[%clk 0:02:00.7]} 21... Nf4 {[%clk 0:00:21]} 22. Rh8 {[%clk
0:01:47]} 22... Nxg2+ {[%clk 0:00:16.2]} 23. Kf1 {[%clk 0:01:47.1]} 23... Ne3+
{[%clk 0:00:09.7]} 24. fxe3 {[%clk 0:01:47.1]} 24... Bc8+ {[%clk 0:00:05]} 25.
Nf3 {[%clk 0:01:47]} 25... Bxb7 {[%clk 0:00:03.3]} 26. Rxg8+ {[%clk 0:01:46.8]}
26... Ke7 {[%clk 0:00:03.8]} 27. Rxd8 {[%clk 0:01:41.4]} 27... Qxg7 {[%clk
0:00:04.2]} 28. Rad1 {[%clk 0:01:41.4]} 28... Bxe3 {[%clk 0:00:04.2]} 29. R1d7+
{[%clk 0:01:33.6]} 29... Kf6 {[%clk 0:00:03.7]} 30. Rxb7 {[%clk 0:01:28.1]}
30... Qh6 {[%clk 0:00:02.3]} 31. Rd6+ {[%clk 0:01:27.5]} 1-0

[Event "*** Titled Tuesday Blitz"]
[Site "Chess.com"]
[Date "2020.05.05"]
[Round "4"]
[White "artooon"]
[Black "adriangschnitzer"]
[Result "1-0"]
[WhiteElo "2629"]
[BlackElo "2421"]
[TimeControl "180+1"]
[EndTime "10:39:18 PDT"]
[Termination "artooon won on time"]

1. e4 {[%clk 0:03:00.9]} 1... c6 {[%clk 0:02:59.9]} 2. d4 {[%clk 0:03:00.4]}
2... d5 {[%clk 0:03:00.8]} 3. e5 {[%clk 0:03:01.1]} 3... c5 {[%clk 0:03:00.5]}
4. Nc3 {[%clk 0:03:02]} 4... Bf5 {[%clk 0:02:42.3]} 5. Nf3 {[%clk 0:03:01.2]}
5... e6 {[%clk 0:02:39.3]} 6. dxc5 {[%clk 0:02:48.8]} 6... Bxc5 {[%clk
0:02:37.3]} 7. Nd4 {[%clk 0:02:49.4]} 7... Bg6 {[%clk 0:02:30.6]} 8. Bb5+ {[%clk
0:02:48]} 8... Nd7 {[%clk 0:02:29.8]} 9. O-O {[%clk 0:02:46.9]} 9... Ne7 {[%clk
0:02:28.8]} 10. Bg5 {[%clk 0:02:45.2]} 10... a6 {[%clk 0:02:24.5]} 11. Bxd7+
{[%clk 0:02:37]} 11... Qxd7 {[%clk 0:02:25.4]} 12. Nb3 {[%clk 0:02:37]} 12...
Ba7 {[%clk 0:02:21.9]} 13. Ne2 {[%clk 0:02:27.8]} 13... Rc8 {[%clk 0:02:16.7]}
14. Ned4 {[%clk 0:02:24.3]} 14... O-O {[%clk 0:02:13.3]} 15. c3 {[%clk
0:02:24.3]} 15... Nc6 {[%clk 0:02:00.8]} 16. Re1 {[%clk 0:02:23.4]} 16... Rce8
{[%clk 0:01:45.9]} 17. Nxc6 {[%clk 0:02:21.2]} 17... bxc6 {[%clk 0:01:44.3]} 18.
Qe2 {[%clk 0:02:16.3]} 18... Ra8 {[%clk 0:01:19.2]} 19. Be3 {[%clk 0:02:15.9]}
19... Qe7 {[%clk 0:01:05.4]} 20. Bxa7 {[%clk 0:02:11.9]} 20... Rxa7 {[%clk
0:01:02.3]} 21. c4 {[%clk 0:02:12.5]} 21... c5 {[%clk 0:00:55.9]} 22. cxd5
{[%clk 0:02:09.7]} 22... exd5 {[%clk 0:00:56.8]} 23. Rac1 {[%clk 0:02:10.3]}
23... Rc8 {[%clk 0:00:52.2]} 24. Red1 {[%clk 0:02:07]} 24... Rd7 {[%clk
0:00:39.4]} 25. Qxa6 {[%clk 0:02:05.9]} 25... Qf8 {[%clk 0:00:23]} 26. Qb5
{[%clk 0:02:05.6]} 26... Rdc7 {[%clk 0:00:08.8]} 27. Rxd5 {[%clk 0:02:05.6]}
27... c4 {[%clk 0:00:08.7]} 28. Nd4 {[%clk 0:02:05.7]} 28... Be4 {[%clk
0:00:07.5]} 29. Rd6 {[%clk 0:02:04.3]} 29... Bd3 {[%clk 0:00:06.6]} 30. Qa5
{[%clk 0:02:03.2]} 30... Rb7 {[%clk 0:00:04.8]} 31. Qc3 {[%clk 0:02:01.9]} 31...
Ra8 {[%clk 0:00:04.3]} 32. Nc6 {[%clk 0:02:01.5]} 32... Rxa2 {[%clk 0:00:03.2]}
33. Rd8 {[%clk 0:02:01.1]} 33... Qxd8 {[%clk 0:00:02.3]} 34. Nxd8 {[%clk
0:02:02]} 34... Rbxb2 {[%clk 0:00:01.6]} 35. e6 {[%clk 0:01:59.9]} 1-0